bitfinex-derivatives/quotes_SOLF0:USTF0_20251210
["timestamp","ask_amount","ask_price","bid_price","bid_amount"]
[1765369625390,0.04634541,136.88,136.85,3.19225092]
[1765369635497,6.62094541,136.88,136.85,3.19225092]
[1765369638505,6.575,136.87,136.85,0.05225092]
[1765369641805,6.5755,136.86,136.85,0.05225092]
[1765369644705,65.50074901,136.86,136.8,3.06]
[1765369645008,3.52074901,136.83,136.75,3.06]
[1765369645813,3.52074901,136.83,136.79,3.06]
[1765369645814,0.0467256,136.8,136.79,3.06]
[1765369647017,3.52074901,136.86,136.8,3.06]
[1765369647915,10.09664901,136.86,136.81,3.06]
[1765369648111,0.04913339,136.84,136.83,3.06]
[1765369651520,6.5749,136.88,136.83,3.06]
[1765369651819,6.5751,136.87,136.83,3.06]
[1765369652322,0.05232285,136.86,136.83,3.06]
[1765369653621,0.05232285,136.86,136.84,3.03]
[1765369654415,0.05232285,136.86,136.85,3.03]
[1765369658124,0.05232285,136.86,136.84,3.03]
[1765369659924,6.62782285,136.86,136.84,3.03]
[1765369665240,0.05232285,136.86,136.84,3.03]
[1765369668140,6.5761,136.85,136.82,0.05149008]
[1765369668445,3.52074901,136.85,136.82,0.05149008]
[1765369668834,3.52074901,136.85,136.82,3.08149008]
[1765369669239,6.62792285,136.86,136.82,3.08149008]
[1765369676255,0.05232285,136.86,136.82,0.05149008]
[1765369677854,6.5765,136.84,136.82,0.05149008]
[1765369678544,6.5765,136.84,136.82,3.08149008]
[1765369679056,6.62812285,136.86,136.82,3.08149008]
[1765369679254,0.05232285,136.86,136.82,3.08149008]
[1765369680048,6.62832285,136.86,136.82,3.08149008]
[1765369683959,0.05232285,136.86,136.82,3.08149008]
[1765369686063,8.82859314,136.91,136.84,3.23]
[1765369686362,8.82859314,136.91,136.85,3.23]
[1765369687154,0.05350348,136.89,136.88,3.23]
[1765369692760,62.0,136.93,136.9,3.06]
[1765369693468,62.0,136.93,136.91,3.06]
[1765369693764,62.05624925,136.93,136.91,3.10789742]
[1765369694168,62.05624925,136.93,136.91,9.68079742]
[1765369696872,2.25509314,136.92,136.91,0.04789742]
[1765369701274,8.82769314,136.92,136.91,0.04789742]
[1765369704175,2.25509314,136.9,136.86,3.06]
[1765369704381,2.25509314,136.87,136.84,3.06]
[1765369704581,2.25509314,136.89,136.87,3.06]
[1765369704784,2.25509314,136.91,136.87,3.06]
[1765369705085,0.04641129,136.9,136.88,3.11334976]
[1765369706082,0.04641129,136.9,136.88,9.68784976]
[1765369707884,0.04641129,136.9,136.89,6.574]
[1765369708181,0.04641129,136.9,136.89,9.634]
[1765369710083,0.04641129,136.9,136.89,3.06]
[1765369711389,0.04641129,136.9,136.88,3.18334976]
[1765369711578,2.25509314,136.89,136.88,3.18334976]
[1765369714687,6.62001129,136.9,136.88,3.18334976]
[1765369714874,2.25509314,136.89,136.88,3.18334976]
[1765369717988,8.82909314,136.89,136.88,3.18334976]
[1765369719192,6.574,136.89,136.88,3.18334976]
[1765369719385,0.04641129,136.9,136.88,3.18334976]
[1765369722600,6.62001129,136.9,136.88,3.18334976]
[1765369725091,0.04641129,136.9,136.88,3.18334976]
[1765369731704,0.04641129,136.9,136.89,3.13]
[1765369732905,0.04641129,136.9,136.89,9.704]
[1765369736300,2.25509314,136.96,136.93,3.13]
[1765369736507,2.25509314,136.96,136.92,6.5726]
[1765369736804,2.25509314,136.96,136.92,9.7026]
[1765369737307,2.25509314,136.94,136.93,0.05240761]
[1765369739304,0.05341177,136.95,136.93,0.05240761]
[1765369739506,2.25509314,136.94,136.93,0.05240761]
[1765369740805,0.05341177,136.95,136.93,0.05240761]
[1765369742001,0.05341177,136.95,136.93,3.25240761]
[1765369743911,0.05341177,136.95,136.93,0.05240761]
[1765369747016,0.05341177,136.95,136.93,3.25240761]
[1765369749119,6.62461177,136.95,136.93,3.25240761]
[1765369751711,6.5716,136.94,136.93,3.25240761]
[1765369752717,6.5716,136.94,136.93,0.05240761]
[1765369755527,6.5729,136.92,136.89,3.26]
[1765369755824,3.51993911,136.93,136.85,13.57732799]
[1765369756030,102.2416,136.92,136.86,3.26]
[1765369756220,6.5741,136.89,136.86,3.26]
[1765369756529,6.62261697,136.89,136.86,3.30663315]
[1765369757430,6.5748,136.88,136.86,3.30663315]
[1765369758029,0.04851697,136.89,136.86,3.30663315]
[1765369764023,0.04851697,136.89,136.87,3.26]
[1765369765130,0.04851697,136.89,136.86,3.30663315]
[1765369767436,6.62261697,136.89,136.86,3.30663315]
[1765369770137,6.5746,136.88,136.86,3.30663315]
[1765369770844,0.04851697,136.89,136.86,3.30663315]
[1765369780942,6.62261697,136.89,136.86,3.30663315]
[1765369782346,0.04851697,136.89,136.87,3.14]
[1765369788246,67.2612586,136.94,136.87,3.14]
[1765369788446,61.96,136.94,136.87,3.14]
[1765369789356,0.04914131,136.92,136.9,3.14]
[1765369795761,0.04914131,136.92,136.9,9.7135]
[1765369796159,0.04914131,136.92,136.91,3.14]
[1765369800054,0.04914131,136.92,136.9,3.12]
[1765369800253,0.04914131,136.92,136.89,3.16950653]
[1765369802654,2.30264468,136.92,136.89,3.16950653]
[1765369802859,2.30264468,136.92,136.89,9.74350653]
[1765369803167,2.30264468,136.92,136.9,3.12]
[1765369807968,0.04914131,136.92,136.9,9.6935]
[1765369808171,0.04914131,136.92,136.9,3.12]
[1765369808364,61.98,136.94,136.9,3.12]
[1765369808671,2.25350337,136.97,136.91,3.16]
[1765369808872,2.25350337,136.95,136.92,3.16]
[1765369809372,2.3042924,136.95,136.92,3.21605993]
[1765369811166,8.8754924,136.95,136.92,3.21605993]
[1765369813073,8.8754924,136.95,136.92,0.05605993]
[1765369813576,6.5717,136.94,136.92,0.05605993]
[1765369817777,6.62198903,136.95,136.92,0.05605993]
[1765369819373,6.572,136.94,136.92,0.05605993]
[1765369819571,2.25350337,136.94,136.92,0.05605993]
[1765369819771,64.23350337,136.94,136.92,0.05605993]
[1765369820072,6.5727,136.92,136.86,13.57732799]
[1765369820269,2.25350337,136.91,136.85,20.15322799]
[1765369820470,2.25350337,136.91,136.86,13.57732799]
[1765369820671,2.25350337,136.91,136.85,20.15322799]
[1765369821178,0.053605,136.89,136.87,0.05083023]
[1765369823382,2.30710837,136.89,136.87,0.05083023]
[1765369824582,8.88120837,136.89,136.87,0.05083023]
[1765369826988,6.627705,136.89,136.87,0.05083023]
[1765369827179,2.25350337,136.88,136.87,0.05083023]
[1765369827980,8.82800337,136.88,136.87,0.05083023]
[1765369829877,2.25350337,136.88,136.87,0.05083023]
[1765369830785,8.82800337,136.88,136.87,0.05083023]
[1765369831684,6.5756,136.86,136.82,13.59496053]
[1765369831880,2.25350337,136.86,136.81,13.59496053]
[1765369832085,2.25350337,136.86,136.8,13.59496053]
[1765369832577,2.25350337,136.86,136.82,0.05365138]
[1765369832782,0.05587695,136.84,136.82,0.05365138]
[1765369834285,2.25350337,136.89,136.82,0.05365138]
[1765369834489,2.25350337,136.89,136.82,13.64861191]
[1765369835291,0.05474013,136.87,136.82,13.64861191]
[1765369835891,0.05474013,136.87,136.83,6.5768]
[1765369836088,0.05474013,136.87,136.82,13.64861191]
[1765369836892,0.05474013,136.87,136.84,6.5764]
[1765369840284,0.05474013,136.87,136.83,13.59496053]
[1765369840488,0.05474013,136.87,136.84,13.59496053]
[1765369840692,0.05474013,136.87,136.85,13.59496053]
[1765369841799,0.05474013,136.87,136.86,6.5755]
[1765369852110,0.05474013,136.87,136.86,9.8455]
[1765369856723,64.25350337,136.93,136.89,3.24]
[1765369857220,62.0,136.93,136.9,9.8136]
[1765369857611,2.25350337,136.94,136.9,3.24]
[1765369857810,0.04910751,136.93,136.91,9.86049628]
[1765369858522,0.04910751,136.93,136.91,6.62049628]
[1765369859118,2.25350337,136.92,136.91,0.04739628]
[1765369862725,6.62120751,136.93,136.91,0.04739628]
[1765369864026,0.04910751,136.93,136.91,0.04739628]
[1765369868731,0.04910751,136.93,136.91,9.84039628]
[1765369869037,0.04910751,136.93,136.91,3.26739628]
[1765369869827,0.04910751,136.93,136.92,9.7926]
[1765369873531,0.04910751,136.93,136.92,9.7926]
[1765369875034,0.04910751,136.93,136.92,3.22]
[1765369876035,83.9,136.99,136.92,3.22]
[1765369876036,61.98,136.99,136.92,3.22]
[1765369876733,68.5495,136.99,136.92,3.22]
[1765369877127,61.98,136.99,136.95,3.22]
[1765369877936,6.5698,136.98,136.95,3.22]
[1765369878236,3.52082616,137.01,136.95,3.22]
[1765369878429,10.08912616,137.01,136.95,3.22]
[1765369878637,61.98,137.04,136.96,3.14]
[1765369878821,61.98,137.04,136.95,13.59496053]
[1765369878822,61.98,137.04,137.0,3.14]
[1765369879229,6.5677,137.03,137.0,3.14]
[1765369880034,61.98,137.04,137.0,3.14]
[1765369880638,61.98,137.04,136.99,3.19578325]
[1765369881340,61.98,137.04,136.99,0.05578325]
[1765369881632,6.5679,137.02,136.99,0.05578325]
[1765369881825,10.08872616,137.02,136.99,0.05578325]
[1765369883537,3.52082616,137.02,136.99,3.19578325]
[1765369884732,3.52082616,137.02,136.99,0.05578325]
[1765369885442,3.52082616,137.02,136.99,3.19578325]
[1765369887340,10.08872616,137.02,136.99,3.19578325]
[1765369891045,6.5685,137.01,136.99,0.05578325]
[1765369891242,3.52082616,137.02,136.99,0.05578325]
[1765369894047,6.5688,137.0,136.99,0.05578325]
[1765369897952,6.5681,137.02,136.99,3.19578325]
[1765369899252,6.5684,137.01,136.99,3.19578325]
[1765369899551,102.1669,137.02,136.99,0.05578325]
[1765369901047,6.5688,137.0,136.99,0.05578325]
[1765369901257,6.5688,137.0,136.99,3.19578325]
[1765369901450,61.98,137.04,136.99,3.19578325]
[1765369901649,6.5683,137.02,136.99,3.19578325]
[1765369901954,61.98,137.04,136.99,3.19578325]
[1765369902153,61.94,137.04,136.99,3.19578325]
[1765369902762,3.52082616,137.05,136.99,3.19578325]
[1765369902957,61.94,137.04,136.99,3.19578325]
[1765369903555,10.08742616,137.05,136.99,3.19578325]
[1765369903853,61.94,137.04,136.99,3.19578325]
[1765369905551,61.94,137.04,137.0,3.14]
[1765369907354,61.94,137.04,137.01,3.14]
[1765369908860,72.02622616,137.08,137.01,3.14]
[1765369909150,72.02622616,137.08,137.03,3.16714556]
[1765369909858,6.5654,137.07,137.03,3.16714556]
[1765369923777,6.5659,137.06,137.03,0.04714556]
[1765369923978,6.5659,137.06,137.03,3.16714556]
[1765369924671,2.24895231,137.05,137.03,3.16714556]
[1765369928871,2.24895231,137.07,137.04,3.12]
[1765369929089,64.18895231,137.08,137.04,3.12]
[1765369929977,2.24895231,137.08,137.07,3.12]
[1765369932789,2.24895231,137.08,137.07,9.6854]
[1765369935493,2.24895231,137.09,137.08,9.6249]
[1765369937692,2.24895231,137.09,137.08,6.5649]
[1765369937997,2.24895231,137.09,137.07,0.04768614]
[1765369942592,2.24895231,137.09,137.07,3.34768614]
[1765369947498,2.24895231,137.11,137.07,3.34768614]
[1765369947998,2.24895231,137.12,137.08,3.3]
[1765369948396,61.92,137.13,137.1,3.3]
[1765369948598,61.92,137.13,137.1,3.35124699]
[1765369948984,2.24895231,137.16,137.11,3.3]
[1765369949199,2.24895231,137.16,137.13,3.3]
[1765369951794,2.24895231,137.17,137.13,3.3]
[1765369952092,2.24895231,137.17,137.12,9.91736922]
[1765369953102,2.24895231,137.17,137.13,9.8625]
[1765369953304,2.24895231,137.17,137.14,3.3]
[1765369954606,2.24895231,137.17,137.13,9.8625]
[1765369956000,2.24895231,137.17,137.13,3.3]
[1765369956610,6.5606,137.18,137.13,3.3]
[1765369956909,2.24895231,137.17,137.13,3.3]
[1765369957105,8.80965231,137.17,137.13,3.3]
[1765369957313,64.16895231,137.19,137.13,3.3]
[1765369957701,70.72865231,137.19,137.13,3.3]
[1765369958308,61.92,137.19,137.13,5.54895231]
[1765369958618,61.92,137.19,137.14,3.3]
[1765369958920,61.92,137.19,137.16,3.3]
[1765369960108,68.4797,137.19,137.16,3.3]
[1765369960806,61.92,137.19,137.16,3.3]
[1765369961111,6.5591,137.21,137.16,3.3]
[1765369961907,2.24895231,137.2,137.16,3.3]
[1765369962113,2.24895231,137.2,137.17,0.05234595]
[1765369962717,2.24895231,137.2,137.17,3.35234595]
[1765369963915,2.24895231,137.2,137.17,0.05234595]
[1765369963916,6.5597,137.19,137.17,0.05234595]
[1765369964118,2.24895231,137.2,137.17,0.05234595]
[1765369964622,6.5597,137.19,137.17,3.35234595]
[1765369965123,2.24895231,137.2,137.17,3.35234595]
[1765369968019,2.24895231,137.21,137.17,3.35234595]
[1765369968219,2.24895231,137.23,137.17,3.35234595]
[1765369968421,61.9,137.24,137.18,3.31]
[1765369968726,2.24895231,137.2,137.17,0.05234595]
[1765369968929,2.24895231,137.2,137.17,3.36234595]
[1765369970721,2.24895231,137.18,137.17,0.05234595]
[1765369974626,2.24895231,137.21,137.17,3.36234595]
[1765369974929,2.24895231,137.22,137.17,3.36234595]
[1765369975427,70.66715231,137.23,137.17,3.36234595]
[1765369975632,2.24895231,137.24,137.17,3.36234595]
[1765369975824,2.24895231,137.24,137.2,3.31]
[1765369976631,2.24895231,137.26,137.2,3.31]
[1765369976829,2.24895231,137.26,137.23,3.31]
[1765369977225,61.86,137.28,137.23,3.31]
[1765369977525,2.24895231,137.29,137.23,3.31]
[1765369977721,2.24895231,137.29,137.25,0.04792558]
[1765369978230,6.5562,137.27,137.25,0.04792558]
[1765369978925,6.5562,137.27,137.25,3.35792558]
[1765369979430,2.24895231,137.29,137.25,3.35792558]
[1765369980229,6.5559,137.27,137.25,3.35792558]
[1765369980424,8.80485231,137.27,137.25,0.04792558]
[1765369980625,8.80485231,137.27,137.25,3.35792558]
[1765369980824,8.80415231,137.29,137.25,3.35792558]
[1765369981330,6.5559,137.27,137.25,3.35792558]
[1765369984331,6.5551,137.29,137.25,3.35792558]
[1765369986930,3.50177748,137.32,137.25,3.35792558]
[1765369987123,3.50177748,137.32,137.26,3.31]
[1765369987431,61.84,137.33,137.26,3.31]
[1765369987633,167.26737748,137.35,137.29,3.31]
[1765369987826,101.9288,137.34,137.29,3.31]
[1765369988127,6.554,137.31,137.29,3.31]
[1765369988335,101.9288,137.34,137.28,0.05454314]
[1765369988336,3.50177748,137.32,137.28,0.05454314]
[1765369988518,3.50177748,137.29,137.28,0.05454314]
[1765369990332,3.50177748,137.29,137.22,3.31]
[1765369990834,6.557,137.25,137.22,3.31]
[1765369991227,6.60331462,137.25,137.22,3.35684338]
[1765369991625,6.60331462,137.25,137.22,0.04684338]
[1765369991626,6.5573,137.24,137.22,0.04684338]
[1765369992427,3.50177748,137.23,137.22,0.04684338]
[1765369993733,6.5573,137.24,137.22,0.04684338]
[1765369993928,61.88631462,137.25,137.22,3.11684338]
[1765369994628,0.04631462,137.25,137.22,3.11684338]
[1765369998143,0.04631462,137.25,137.22,0.04684338]
[1765369998340,3.50177748,137.23,137.22,0.04684338]
[1765369998540,3.50177748,137.23,137.18,3.07]
[1765369998733,102.04441462,137.25,137.16,3.25]
[1765369998734,3.50177748,137.2,137.16,3.25]
[1765369999438,0.04709696,137.19,137.17,0.04784972]
[1765370001036,6.60679696,137.19,137.17,0.04784972]
[1765370004045,0.04709696,137.19,137.17,3.29784972]
[1765370005946,0.04709696,137.19,137.18,3.25]
[1765370008056,10.05897748,137.25,137.2,3.25]
[1765370009152,0.04745511,137.24,137.21,3.30561235]
[1765370011062,0.04745511,137.24,137.21,0.05561235]
[1765370011256,0.04745511,137.24,137.21,3.30561235]
[1765370017963,0.04745511,137.24,137.23,3.25]
[1765370022869,0.04745511,137.24,137.21,0.05561235]
[1765370023072,3.50177748,137.22,137.21,0.05561235]
[1765370023866,10.05997748,137.22,137.21,0.05561235]
[1765370024370,0.04745511,137.24,137.21,3.30561235]
[1765370024770,6.5578,137.23,137.21,3.30561235]
[1765370024959,0.04745511,137.24,137.21,3.30561235]
[1765370025875,6.60475511,137.24,137.21,3.30561235]
[1765370029974,6.5578,137.23,137.21,0.05561235]
[1765370030471,6.5582,137.22,137.21,0.05561235]
[1765370040276,125.4001,137.22,137.14,13.59496053]
[1765370040581,3.50177748,137.2,137.14,3.2]
[1765370040783,6.5606,137.17,137.14,3.2]
[1765370041277,6.5606,137.17,137.14,3.25344291]
[1765370041278,6.61024688,137.17,137.14,3.25344291]
[1765370041478,0.04964688,137.17,137.14,3.25344291]
[1765370042280,3.55142436,137.17,137.14,0.05344291]
[1765370042581,65.41142436,137.17,137.14,0.05344291]
[1765370043876,6.5616,137.15,137.14,0.05344291]
[1765370044678,8.80766611,137.15,137.14,0.05344291]
[1765370052286,2.24606611,137.15,137.14,3.08344291]
[1765370053089,2.24606611,137.15,137.14,0.05344291]
[1765370054977,8.80766611,137.15,137.14,0.05344291]
[1765370059200,2.24606611,137.16,137.14,0.05344291]
[1765370059396,2.24606611,137.16,137.14,3.18344291]
[1765370059799,2.24606611,137.16,137.14,0.05344291]
[1765370060001,8.80736611,137.16,137.14,0.05344291]
[1765370060597,6.5616,137.15,137.14,0.05344291]
[1765370062506,6.5616,137.15,137.14,3.18344291]
[1765370063906,6.5616,137.15,137.14,0.05344291]
[1765370068912,8.80716611,137.16,137.14,0.05344291]
[1765370069114,8.80716611,137.16,137.14,3.18344291]
[1765370070405,0.04964688,137.17,137.14,3.18344291]
[1765370071914,0.04964688,137.17,137.14,9.74524291]
[1765370072107,0.04964688,137.17,137.15,3.13]
[1765370075211,8.80386611,137.23,137.17,3.13]
[1765370075916,61.88,137.24,137.16,2.24606611]
[1765370075917,61.88,137.24,137.18,3.13]
[1765370076105,0.04742576,137.22,137.18,3.13]
[1765370076311,0.04742576,137.22,137.21,3.13]
[1765370077013,0.04742576,137.22,137.2,0.04957002]
[1765370077204,0.04742576,137.22,137.2,3.17957002]
[1765370078021,6.60572576,137.22,137.2,3.17957002]
[1765370078720,2.24606611,137.21,137.2,0.04957002]
[1765370080425,6.60572576,137.22,137.2,3.17957002]
[1765370083425,6.60572576,137.22,137.2,0.04957002]
[1765370083723,8.85179187,137.22,137.2,0.04957002]
[1765370084423,6.5587,137.21,137.2,0.04957002]
[1765370087925,2.29349187,137.22,137.2,0.04957002]
[1765370088929,8.85179187,137.22,137.2,0.04957002]
[1765370090927,6.5587,137.21,137.2,0.04957002]
[1765370091127,2.29349187,137.22,137.2,3.15957002]
[1765370091931,8.85179187,137.22,137.2,3.15957002]
[1765370093221,8.85179187,137.22,137.2,0.04957002]
[1765370093421,6.5587,137.21,137.2,0.04957002]
[1765370095933,6.5587,137.21,137.13,117.92212664]
[1765370095934,123.9487,137.21,137.13,3.11]
[1765370096120,2.24606611,137.15,137.13,3.11]
[1765370097132,2.29441092,137.15,137.13,3.16547603]
[1765370099925,0.04834481,137.15,137.13,3.16547603]
[1765370100628,2.29441092,137.15,137.13,0.05547603]
[1765370100932,2.29441092,137.15,137.13,3.16547603]
[1765370101117,2.29441092,137.15,137.13,0.05547603]
[1765370101524,2.29441092,137.15,137.13,3.16547603]
[1765370101923,8.85611092,137.15,137.13,3.16547603]
[1765370102126,2.29441092,137.15,137.13,3.16547603]
[1765370105137,2.29441092,137.15,137.13,0.05547603]
[1765370105635,2.29441092,137.15,137.13,3.16547603]
[1765370106635,0.04834481,137.15,137.13,3.16547603]
[1765370111244,0.04834481,137.15,137.13,9.72797603]
[1765370111544,0.04834481,137.15,137.14,3.11]
[1765370114138,6.60994481,137.15,137.14,3.11]
[1765370114342,0.04834481,137.15,137.13,0.05547603]
[1765370114735,6.5621,137.14,137.13,0.05547603]
[1765370116441,0.04834481,137.15,137.13,3.39547603]
[1765370124541,0.04834481,137.15,137.13,9.95797603]
[1765370124742,0.04834481,137.15,137.14,3.32]
[1765370129156,0.04834481,137.15,137.13,0.05547603]
[1765370129447,0.04834481,137.15,137.13,3.37547603]
[1765370135749,0.04834481,137.15,137.13,9.93757603]
[1765370135950,0.04834481,137.15,137.14,3.32]
[1765370136954,0.04834481,137.15,137.14,9.8821]
[1765370139155,0.04834481,137.15,137.14,3.32]
[1765370142555,0.04834481,137.15,137.13,3.37547603]
[1765370143858,6.60994481,137.15,137.13,3.37547603]
[1765370144262,0.04834481,137.15,137.13,3.37547603]
[1765370145383,0.04834481,137.15,137.13,0.05547603]
[1765370145658,3.50933138,137.14,137.13,0.05547603]
[1765370146051,6.5632,137.12,137.08,13.59496053]
[1765370146254,6.5632,137.12,137.09,3.32]
[1765370147066,6.61117282,137.12,137.09,3.37078595]
[1765370151262,6.5635,137.11,137.09,3.37078595]
[1765370152357,6.5635,137.11,137.09,0.05078595]
[1765370152967,10.07283138,137.11,137.09,0.05078595]
[1765370155262,0.04797282,137.12,137.09,3.36078595]
[1765370157868,0.04797282,137.12,137.09,9.92508595]
[1765370158070,0.04797282,137.12,137.1,3.31]
[1765370160382,0.04797282,137.12,137.09,3.36078595]
[1765370161883,0.04797282,137.12,137.09,0.05078595]
[1765370162071,0.04797282,137.12,137.03,3.31]
[1765370162072,109.16153558,137.12,137.03,3.31]
[1765370162374,3.50933138,137.08,137.03,3.31]
[1765370162563,3.50933138,137.09,137.05,3.31]
[1765370163169,0.04846117,137.08,137.06,0.05363988]
[1765370163779,0.04846117,137.08,137.06,3.36363988]
[1765370165373,0.04846117,137.08,137.06,0.05363988]
[1765370165876,0.04846117,137.08,137.06,3.36363988]
[1765370171586,0.04846117,137.08,137.06,3.36363988]
[1765370173388,6.61346117,137.08,137.06,3.36363988]
[1765370174788,2.24785102,137.07,137.06,3.33363988]
[1765370175180,2.24785102,137.07,137.06,0.05363988]
[1765370175381,8.81325102,137.07,137.06,0.05363988]
[1765370175685,8.81325102,137.07,137.06,3.33363988]
[1765370176690,8.81325102,137.07,137.06,0.05363988]
[1765370176893,6.5668,137.04,137.03,3.28]
[1765370177689,6.5677,137.03,136.99,3.28]
[1765370177889,0.0559376,137.02,137.01,3.28]
[1765370178592,6.5683,137.01,137.0,3.24335479]
[1765370180395,6.5683,137.01,137.0,0.05335479]
[1765370180989,6.6237376,137.02,137.0,0.05335479]
[1765370181892,0.0559376,137.02,137.0,0.05335479]
[1765370189191,0.0559376,137.02,137.0,2.30120581]
[1765370191295,0.0559376,137.02,137.0,0.05335479]
[1765370197703,0.0559376,137.02,137.0,2.30120581]
[1765370198610,2.24785102,137.07,137.0,2.30120581]
[1765370199003,32.78,137.1,137.0,2.30120581]
[1765370199298,2.24785102,137.08,137.0,2.24785102]
[1765370199502,0.04923599,137.05,137.03,0.04760669]
[1765370210613,0.04923599,137.05,137.03,13.64256722]
[1765370210813,2.24785102,137.1,137.03,13.64256722]
[1765370211009,21.87,137.14,137.03,13.64256722]
[1765370211211,2.24785102,137.11,137.04,13.59496053]
[1765370212014,0.04721277,137.09,137.06,0.04830181]
[1765370218208,0.04721277,137.09,137.07,3.16]
[1765370218416,0.04721277,137.09,137.06,3.20830181]
[1765370219221,2.29506379,137.09,137.06,0.04830181]
[1765370220423,2.24785102,137.07,137.06,0.04830181]
[1765370226627,2.29506379,137.09,137.06,0.04830181]
[1765370228832,0.04721277,137.09,137.06,0.04830181]
[1765370229634,3.51260466,137.08,137.0,3.2]
[1765370229926,3.51260466,137.07,137.0,3.2]
[1765370230518,0.05035949,137.05,137.02,0.05448891]
[1765370234228,0.05035949,137.05,137.02,3.25448891]
[1765370238334,0.05035949,137.05,137.02,0.05448891]
[1765370240538,0.05035949,137.05,137.02,3.25448891]
[1765370248950,6.61675949,137.05,137.02,3.25448891]
[1765370249654,0.05035949,137.05,137.02,3.25448891]
[1765370250045,6.5673,137.04,137.02,3.25448891]
[1765370250245,0.05035949,137.05,137.02,3.25448891]
[1765370250450,0.05035949,137.05,137.02,0.05448891]
[1765370250952,0.05035949,137.05,137.02,3.35448891]
[1765370251154,6.5673,137.03,137.02,3.35448891]
[1765370259980,6.5669,137.04,137.02,3.35448891]
[1765370260779,0.05035949,137.05,136.99,3.3]
[1765370260780,102.19825949,137.05,136.99,3.3]
[1765370260981,102.1479,137.05,136.99,3.3]
[1765370261376,127.53430466,137.04,136.97,3.3]
[1765370261576,127.53430466,137.04,136.95,3.3]
[1765370261779,0.04752385,137.01,136.98,0.04619989]
[1765370262172,6.569,137.0,136.98,0.04619989]
[1765370262378,0.04752385,137.01,136.98,3.34619989]
[1765370263984,6.61582385,137.01,136.98,3.34619989]
[1765370265584,6.5688,137.0,136.98,3.34619989]
[1765370266880,0.04752385,137.01,136.98,3.34619989]
[1765370274595,6.61582385,137.01,136.98,3.34619989]
[1765370275092,0.04752385,137.01,136.98,3.34619989]
[1765370275793,0.04752385,137.01,136.98,9.91589989]
[1765370276194,0.04752385,137.01,136.98,3.34619989]
[1765370280095,0.04752385,137.01,136.98,9.91589989]
[1765370280300,0.04752385,137.01,136.99,3.06]
[1765370280593,0.04752385,137.01,136.98,0.04619989]
[1765370280788,3.56012851,137.01,136.98,0.04619989]
[1765370280984,6.5688,137.0,136.98,0.04619989]
[1765370281787,0.04752385,137.01,136.98,3.10619989]
[1765370282392,6.61582385,137.01,136.98,3.10619989]
[1765370282889,0.04752385,137.01,136.98,3.10619989]
[1765370283086,0.04752385,137.01,136.98,0.04619989]
[1765370283894,6.5688,137.0,136.98,0.04619989]
[1765370288199,3.56012851,137.01,136.98,0.04619989]
[1765370288200,6.5692,136.99,136.98,0.04619989]
[1765370288999,2.25102173,137.0,136.93,13.59496053]
[1765370289205,104.48052173,136.94,136.89,18.12661404]
[1765370289405,104.48052173,136.94,136.88,3.06]
[1765370289406,102.2295,136.94,136.88,3.06]
[1765370289600,102.2377,136.93,136.86,3.06]
[1765370290099,0.05310392,136.91,136.88,3.10766487]
[1765370292208,2.30412565,136.91,136.88,3.10766487]
[1765370292402,2.30412565,136.91,136.88,0.04766487]
[1765370292802,2.30412565,136.91,136.88,3.10766487]
[1765370295108,0.05310392,136.91,136.88,3.10766487]
[1765370296806,0.05310392,136.91,136.88,5.3586866]
[1765370297001,0.05310392,136.91,136.89,3.12]
[1765370297809,6.5704,136.97,136.91,3.12]
[1765370298106,102.1837,137.0,136.88,0.04766487]
[1765370298107,2.25102173,137.0,136.93,3.12]
[1765370298512,6.5694,136.99,136.93,3.12]
[1765370298910,0.05024314,136.97,136.95,0.0516802]
[1765370300915,0.05024314,136.97,136.95,3.1716802]
[1765370304519,0.05024314,136.97,136.95,0.0516802]
[1765370305915,2.25102173,136.96,136.95,0.0516802]
[1765370306315,2.25102173,136.96,136.9,3.1]
[1765370306316,3.71102173,136.96,136.9,3.1]
[1765370306517,0.05024314,136.97,136.9,3.1]
[1765370306719,2.25102173,136.95,136.9,3.1]
[1765370307323,0.05289916,136.94,136.91,3.15399704]
[1765370309327,8.82332173,136.93,136.91,0.05399704]
[1765370311320,6.5738,136.9,136.86,3.1]
[1765370311518,8.82482173,136.9,136.86,3.1]
[1765370312436,0.05346159,136.89,136.87,3.15516194]
[1765370312628,6.62756159,136.89,136.87,3.15516194]
[1765370313130,2.25102173,136.88,136.87,0.05516194]